[Event "Titled Tuesday Blitz March 14 Late 2023"]
[White "Goncalves, Davi Sulzbacher"]
[Black "Kurtz, Eric M"]
[WhiteFideId "2154510"]
[BlackFideId "30939763"]
[WhiteElo "2182"]
[BlackElo "2591"]
[Result "1-0"]
[Round "05"]
[TimeControl "180+1"]
[Date "2023.03.14"]
[WhiteClock "0:00:08"]
[BlackClock "0:00:12"]

1. Nf3 {[%clk 0:02:58]}  d5 {[%clk 0:02:58]} 2. c4 {[%clk 0:02:56]}  e6 {[%clk 0:02:58]} 3. d4 {[%clk 0:02:56]}  Nf6 {[%clk 0:02:59]} 4. Nc3 {[%clk 0:02:55]}  dxc4 {[%clk 0:02:59]} 5. e3 {[%clk 0:02:49]}  a6 {[%clk 0:02:58]} 6. Bxc4 {[%clk 0:02:48]}  b5 {[%clk 0:02:59]} 7. Be2 {[%clk 0:02:49]}  Bb7 {[%clk 0:02:58]} 8. O-O {[%clk 0:02:48]}  Nbd7 {[%clk 0:02:55]} 9. b3 {[%clk 0:02:45]}  c5 {[%clk 0:02:51]} 10. Bb2 {[%clk 0:02:43]}  Be7 {[%clk 0:02:51]} 11. Rc1 {[%clk 0:02:30]}  O-O {[%clk 0:02:50]} 12. Qc2 {[%clk 0:02:24]}  cxd4 {[%clk 0:02:45]} 13. Nxd4 {[%clk 0:02:23]}  Rc8 {[%clk 0:02:45]} 14. Qb1 {[%clk 0:02:23]}  Qa5 {[%clk 0:02:31]} 15. Bf3 {[%clk 0:01:50]}  Qb6 {[%clk 0:01:59]} 16. Ne4 {[%clk 0:01:35]}  Ne5 {[%clk 0:01:35]} 17. Nxf6+ {[%clk 0:01:32]}  Bxf6 {[%clk 0:01:35]} 18. Be4 {[%clk 0:01:30]}  h6 {[%clk 0:01:19]} 19. h3 {[%clk 0:01:05]}  Rfd8 {[%clk 0:01:16]} 20. Bh7+ {[%clk 0:00:46]}  Kh8 {[%clk 0:01:15]} 21. Be4 {[%clk 0:00:47]}  Qa7 {[%clk 0:00:59]} 22. Kh1 {[%clk 0:00:39]}  Qa8 {[%clk 0:00:58]} 23. Bxb7 {[%clk 0:00:32]}  Qxb7 {[%clk 0:00:57]} 24. Ne2 {[%clk 0:00:25]}  Rd2 {[%clk 0:00:52]} 25. Nf4 {[%clk 0:00:18]}  Rcd8 {[%clk 0:00:41]} 26. Nh5 {[%clk 0:00:15]}  Qe7 {[%clk 0:00:13]} 27. Nxf6 {[%clk 0:00:14]}  gxf6 {[%clk 0:00:13]} 28. f4 {[%clk 0:00:11]}  Nd3 {[%clk 0:00:12]} 29. Rc2 {[%clk 0:00:09]}  Nxb2 {[%clk 0:00:11]} 30. Qxb2 {[%clk 0:00:08]}  Rxc2 {[%clk 0:00:11]} 31. Qxc2 {[%clk 0:00:09]}  Kg7 {[%clk 0:00:12]} 32. Rf3 {[%clk 0:00:08]}  Kh8 {[%clk 0:00:10]} 33. Qc3 {[%clk 0:00:08]}  Rd1+ {[%clk 0:00:08]} 34. Kh2 {[%clk 0:00:07]}  Rd8 {[%clk 0:00:08]} 35. e4 {[%clk 0:00:07]}  Rg8 {[%clk 0:00:08]} 36. Rg3 {[%clk 0:00:06]}  Rxg3 {[%clk 0:00:08]} 37. Qxg3 {[%clk 0:00:07]}  Kh7 {[%clk 0:00:08]} 38. Qh4 {[%clk 0:00:07]}  Qd8 {[%clk 0:00:08]} 39. e5 {[%clk 0:00:08]}  Qh8 {[%clk 0:00:06]} 40. exf6 {[%clk 0:00:07]}  Qb8 {[%clk 0:00:06]} 41. Qg4 {[%clk 0:00:06]}  Qf8 {[%clk 0:00:07]} 42. Kg3 {[%clk 0:00:06]}  b4 {[%clk 0:00:08]} 43. Kf3 {[%clk 0:00:06]}  a5 {[%clk 0:00:08]} 44. Kg3 {[%clk 0:00:06]}  Qg8 {[%clk 0:00:08]} 45. Qxg8+ {[%clk 0:00:05]}  Kxg8 {[%clk 0:00:09]} 46. Kg4 {[%clk 0:00:06]}  Kh7 {[%clk 0:00:10]} 47. Kh5 {[%clk 0:00:06]}  Kh8 {[%clk 0:00:09]} 48. Kxh6 {[%clk 0:00:06]}  Kg8 {[%clk 0:00:10]} 49. h4 {[%clk 0:00:07]}  Kh8 {[%clk 0:00:10]} 50. g4 {[%clk 0:00:07]}  Kg8 {[%clk 0:00:11]} 51. g5 {[%clk 0:00:08]}  Kf8 {[%clk 0:00:11]} 52. h5 {[%clk 0:00:09]}  Kg8 {[%clk 0:00:11]} 53. g6 {[%clk 0:00:08]}  Kf8 {[%clk 0:00:12]} 54. Kh7 {[%clk 0:00:08]} 1-0


[Site "https://www.chess.com"]

[Event "Titled Tuesday Blitz March 14 Late 2023"]
[White "Grycel, Kamil"]
[Black "Ambartsumova, Karina"]
[WhiteFideId "1115499"]
[BlackFideId "4166299"]
[WhiteElo "2465"]
[BlackElo "2300"]
[Result "1-0"]
[Round "05"]
[TimeControl "180+1"]
[Date "2023.03.14"]
[WhiteClock "0:00:14"]
[BlackClock "0:00:12"]

1. b3 {[%clk 0:03:00]}  e5 {[%clk 0:02:59]} 2. Bb2 {[%clk 0:03:00]}  Nc6 {[%clk 0:03:00]} 3. Nf3 {[%clk 0:03:00]}  d6 {[%clk 0:02:58]} 4. d4 {[%clk 0:03:00]}  g6 {[%clk 0:02:57]} 5. dxe5 {[%clk 0:02:54]}  Bg7 {[%clk 0:02:57]} 6. e3 {[%clk 0:02:43]}  Nge7 {[%clk 0:02:57]} 7. Be2 {[%clk 0:02:31]}  O-O {[%clk 0:02:54]} 8. O-O {[%clk 0:02:29]}  dxe5 {[%clk 0:02:41]} 9. c4 {[%clk 0:01:45]}  e4 {[%clk 0:02:04]} 10. Nd4 {[%clk 0:01:41]}  Nxd4 {[%clk 0:01:52]} 11. Bxd4 {[%clk 0:01:36]}  Bxd4 {[%clk 0:01:46]} 12. exd4 {[%clk 0:01:31]}  Nf5 {[%clk 0:01:45]} 13. d5 {[%clk 0:01:31]}  e3 {[%clk 0:01:35]} 14. Na3 {[%clk 0:01:25]}  a6 {[%clk 0:01:22]} 15. Nc2 {[%clk 0:01:24]}  exf2+ {[%clk 0:01:20]} 16. Rxf2 {[%clk 0:01:23]}  Qg5 {[%clk 0:01:21]} 17. Qc1 {[%clk 0:01:11]}  Qxc1+ {[%clk 0:01:15]} 18. Rxc1 {[%clk 0:01:12]}  Bd7 {[%clk 0:01:16]} 19. Bg4 {[%clk 0:00:42]}  Rad8 {[%clk 0:01:09]} 20. Re1 {[%clk 0:00:39]}  Rfe8 {[%clk 0:01:02]} 21. Rfe2 {[%clk 0:00:31]}  Rxe2 {[%clk 0:00:58]} 22. Rxe2 {[%clk 0:00:32]}  Kf8 {[%clk 0:00:59]} 23. Bxf5 {[%clk 0:00:32]}  Bxf5 {[%clk 0:00:59]} 24. Nd4 {[%clk 0:00:32]}  Bd7 {[%clk 0:00:59]} 25. Kf2 {[%clk 0:00:33]}  b6 {[%clk 0:00:59]} 26. b4 {[%clk 0:00:31]}  Bc8 {[%clk 0:00:27]} 27. Nc6 {[%clk 0:00:27]}  Re8 {[%clk 0:00:27]} 28. Rxe8+ {[%clk 0:00:27]}  Kxe8 {[%clk 0:00:28]} 29. Ke3 {[%clk 0:00:27]}  f6 {[%clk 0:00:28]} 30. Kd4 {[%clk 0:00:27]}  h5 {[%clk 0:00:23]} 31. c5 {[%clk 0:00:26]}  bxc5+ {[%clk 0:00:19]} 32. Kxc5 {[%clk 0:00:26]}  h4 {[%clk 0:00:17]} 33. a4 {[%clk 0:00:24]}  g5 {[%clk 0:00:17]} 34. d6 {[%clk 0:00:23]}  cxd6+ {[%clk 0:00:17]} 35. Kxd6 {[%clk 0:00:24]}  h3 {[%clk 0:00:18]} 36. g3 {[%clk 0:00:24]}  Kf7 {[%clk 0:00:18]} 37. a5 {[%clk 0:00:23]}  Bg4 {[%clk 0:00:17]} 38. Nd4 {[%clk 0:00:21]}  Bd1 {[%clk 0:00:15]} 39. b5 {[%clk 0:00:21]}  Bg4 {[%clk 0:00:06]} 40. bxa6 {[%clk 0:00:14]}  Bc8 {[%clk 0:00:06]} 41. a7 {[%clk 0:00:14]}  Bb7 {[%clk 0:00:06]} 42. Kc7 {[%clk 0:00:15]}  Bg2 {[%clk 0:00:06]} 43. Kb8 {[%clk 0:00:15]}  f5 {[%clk 0:00:07]} 44. a8=Q {[%clk 0:00:15]}  Bxa8 {[%clk 0:00:07]} 45. Kxa8 {[%clk 0:00:16]}  f4 {[%clk 0:00:08]} 46. gxf4 {[%clk 0:00:16]}  g4 {[%clk 0:00:08]} 47. Ne2 {[%clk 0:00:14]}  Kf6 {[%clk 0:00:08]} 48. Ng3 {[%clk 0:00:14]}  Ke6 {[%clk 0:00:09]} 49. Kb7 {[%clk 0:00:14]}  Kd5 {[%clk 0:00:09]} 50. a6 {[%clk 0:00:15]}  Kd4 {[%clk 0:00:10]} 51. a7 {[%clk 0:00:15]}  Ke3 {[%clk 0:00:11]} 52. a8=Q {[%clk 0:00:16]}  Kxf4 {[%clk 0:00:11]} 53. Qa4+ {[%clk 0:00:16]}  Kf3 {[%clk 0:00:11]} 54. Qb3+ {[%clk 0:00:16]}  Kg2 {[%clk 0:00:11]} 55. Qc2+ {[%clk 0:00:17]}  Kf3 {[%clk 0:00:11]} 56. Qd3+ {[%clk 0:00:17]}  Kg2 {[%clk 0:00:12]} 57. Qe2+ {[%clk 0:00:17]}  Kg1 {[%clk 0:00:12]} 58. Ne4 {[%clk 0:00:14]}  g3 {[%clk 0:00:11]} 59. hxg3 {[%clk 0:00:13]}  h2 {[%clk 0:00:11]} 60. Qf2+ {[%clk 0:00:14]}  Kh1 {[%clk 0:00:12]} 61. Qf1# {[%clk 0:00:14]} 1-0


[Site "https://www.chess.com"]

[Event "Titled Tuesday Blitz March 14 Late 2023"]
[White "Holt, Conrad"]
[Black "Karas, Marek"]
[WhiteFideId "2034387"]
[BlackFideId "14928558"]
[WhiteElo "2592"]
[BlackElo "2233"]
[Result "1-0"]
[Round "05"]
[TimeControl "180+1"]
[Date "2023.03.14"]
[WhiteClock "0:00:09"]
[BlackClock "0:00:02"]

1. d4 {[%clk 0:03:00]}  Nf6 {[%clk 0:02:58]} 2. c4 {[%clk 0:03:01]}  e6 {[%clk 0:02:57]} 3. Nc3 {[%clk 0:03:01]}  d5 {[%clk 0:02:57]} 4. cxd5 {[%clk 0:03:00]}  Nxd5 {[%clk 0:02:58]} 5. e3 {[%clk 0:02:58]}  c5 {[%clk 0:02:53]} 6. Bc4 {[%clk 0:02:55]}  Nb6 {[%clk 0:02:50]} 7. Bd3 {[%clk 0:02:49]}  cxd4 {[%clk 0:02:46]} 8. exd4 {[%clk 0:02:47]}  Nc6 {[%clk 0:02:46]} 9. Nf3 {[%clk 0:02:48]}  Be7 {[%clk 0:02:42]} 10. O-O {[%clk 0:02:47]}  Nd5 {[%clk 0:02:30]} 11. Nxd5 {[%clk 0:02:40]}  Qxd5 {[%clk 0:02:31]} 12. Re1 {[%clk 0:02:36]}  O-O {[%clk 0:02:18]} 13. Be4 {[%clk 0:02:32]}  Qh5 {[%clk 0:02:18]} 14. Ne5 {[%clk 0:01:57]}  Qxd1 {[%clk 0:02:08]} 15. Rxd1 {[%clk 0:01:58]}  Nb4 {[%clk 0:01:59]} 16. Bd2 {[%clk 0:01:58]}  f6 {[%clk 0:01:48]} 17. Bxb4 {[%clk 0:01:57]}  Bxb4 {[%clk 0:01:46]} 18. Nd3 {[%clk 0:01:57]}  Bd6 {[%clk 0:01:43]} 19. Rac1 {[%clk 0:01:57]}  Rb8 {[%clk 0:01:35]} 20. g3 {[%clk 0:01:52]}  Kf7 {[%clk 0:01:22]} 21. b4 {[%clk 0:01:31]}  b6 {[%clk 0:01:14]} 22. d5 {[%clk 0:01:17]}  e5 {[%clk 0:01:10]} 23. Rc6 {[%clk 0:01:10]}  Ke7 {[%clk 0:01:09]} 24. Bxh7 {[%clk 0:00:59]}  Bb7 {[%clk 0:01:00]} 25. Rcc1 {[%clk 0:00:59]}  f5 {[%clk 0:00:50]} 26. h4 {[%clk 0:00:55]}  Kf6 {[%clk 0:00:47]} 27. h5 {[%clk 0:00:54]}  Rfc8 {[%clk 0:00:45]} 28. a3 {[%clk 0:00:32]}  Rxc1 {[%clk 0:00:44]} 29. Nxc1 {[%clk 0:00:31]}  Rc8 {[%clk 0:00:40]} 30. Ne2 {[%clk 0:00:22]}  Rc2 {[%clk 0:00:34]} 31. Nc1 {[%clk 0:00:19]}  Rc3 {[%clk 0:00:33]} 32. g4 {[%clk 0:00:15]}  fxg4 {[%clk 0:00:29]} 33. Ne2 {[%clk 0:00:15]}  Rxa3 {[%clk 0:00:27]} 34. Ng3 {[%clk 0:00:15]}  a5 {[%clk 0:00:21]} 35. bxa5 {[%clk 0:00:12]}  bxa5 {[%clk 0:00:20]} 36. Nf5 {[%clk 0:00:09]}  Bc5 {[%clk 0:00:15]} 37. d6 {[%clk 0:00:09]}  g3 {[%clk 0:00:13]} 38. d7 {[%clk 0:00:09]}  Bxf2+ {[%clk 0:00:12]} 39. Kf1 {[%clk 0:00:09]}  Bb6 {[%clk 0:00:06]} 40. Rd6+ {[%clk 0:00:08]}  Kg5 {[%clk 0:00:04]} 41. Rxb6 {[%clk 0:00:08]}  g2+ {[%clk 0:00:04]} 42. Ke2 {[%clk 0:00:07]}  g1=Q {[%clk 0:00:01]} 43. Rg6+ {[%clk 0:00:07]}  Kf4 {[%clk 0:00:02]} 44. Rxg1 {[%clk 0:00:08]}  Ba6+ {[%clk 0:00:02]} 45. Ke1 {[%clk 0:00:08]}  Ra1+ {[%clk 0:00:02]} 46. Kd2 {[%clk 0:00:08]}  Rxg1 {[%clk 0:00:02]} 47. d8=Q {[%clk 0:00:09]} 1-0


[Site "https://www.chess.com"]

[Event "Titled Tuesday Blitz March 14 Late 2023"]
[White "Jimenez, Joaquin"]
[Black "Sokolin, Leonid"]
[WhiteFideId "109860"]
[BlackFideId "2009161"]
[WhiteElo "2163"]
[BlackElo "2394"]
[Result "0-1"]
[Round "05"]
[TimeControl "180+1"]
[Date "2023.03.14"]
[WhiteClock "0:00:04"]
[BlackClock "0:00:18"]

1. c4 {[%clk 0:03:00]}  e5 {[%clk 0:02:59]} 2. Nc3 {[%clk 0:02:59]}  Bb4 {[%clk 0:02:57]} 3. g3 {[%clk 0:02:57]}  Bxc3 {[%clk 0:02:54]} 4. bxc3 {[%clk 0:02:56]}  d6 {[%clk 0:02:46]} 5. Bg2 {[%clk 0:02:55]}  Nc6 {[%clk 0:02:46]} 6. Rb1 {[%clk 0:02:52]}  Nge7 {[%clk 0:02:44]} 7. d3 {[%clk 0:02:49]}  b6 {[%clk 0:02:35]} 8. e4 {[%clk 0:02:45]}  O-O {[%clk 0:02:32]} 9. Nf3 {[%clk 0:02:42]}  f5 {[%clk 0:02:28]} 10. Nd2 {[%clk 0:02:28]}  f4 {[%clk 0:02:27]} 11. f3 {[%clk 0:02:26]}  Ng6 {[%clk 0:02:21]} 12. Qe2 {[%clk 0:02:17]}  Qf6 {[%clk 0:02:06]} 13. Kd1 {[%clk 0:02:01]}  Nd8 {[%clk 0:01:51]} 14. Kc2 {[%clk 0:01:55]}  Ne6 {[%clk 0:01:48]} 15. Bb2 {[%clk 0:01:46]}  Bd7 {[%clk 0:01:47]} 16. Rbf1 {[%clk 0:01:44]}  b5 {[%clk 0:01:32]} 17. Kb1 {[%clk 0:01:39]}  Rab8 {[%clk 0:01:32]} 18. Ka1 {[%clk 0:01:38]}  Nc5 {[%clk 0:01:29]} 19. Rb1 {[%clk 0:01:15]}  Na4 {[%clk 0:01:28]} 20. Rhc1 {[%clk 0:01:08]}  Qg5 {[%clk 0:01:19]} 21. g4 {[%clk 0:01:07]}  Nh4 {[%clk 0:01:05]} 22. cxb5 {[%clk 0:01:05]}  Bxb5 {[%clk 0:01:04]} 23. c4 {[%clk 0:01:05]}  Bd7 {[%clk 0:01:02]} 24. Nb3 {[%clk 0:01:05]}  c5 {[%clk 0:00:59]} 25. Bh1 {[%clk 0:01:02]}  Rb6 {[%clk 0:00:58]} 26. Ba3 {[%clk 0:00:55]}  Rfb8 {[%clk 0:00:57]} 27. Qc2 {[%clk 0:00:54]}  Ng6 {[%clk 0:00:55]} 28. Bg2 {[%clk 0:00:53]}  Nf8 {[%clk 0:00:53]} 29. Nd2 {[%clk 0:00:50]}  Ne6 {[%clk 0:00:52]} 30. Rxb6 {[%clk 0:00:47]}  Rxb6 {[%clk 0:00:50]} 31. Nb3 {[%clk 0:00:48]}  Qh4 {[%clk 0:00:49]} 32. Bf1 {[%clk 0:00:45]}  h5 {[%clk 0:00:48]} 33. h3 {[%clk 0:00:43]}  Ng5 {[%clk 0:00:47]} 34. Qg2 {[%clk 0:00:39]}  Qg3 {[%clk 0:00:46]} 35. h4 {[%clk 0:00:27]}  Nxf3 {[%clk 0:00:45]} 36. gxh5 {[%clk 0:00:24]}  Nxh4 {[%clk 0:00:45]} 37. Qd2 {[%clk 0:00:19]}  Bg4 {[%clk 0:00:43]} 38. Qa5 {[%clk 0:00:19]}  Bd7 {[%clk 0:00:36]} 39. Qxa7 {[%clk 0:00:19]}  Be8 {[%clk 0:00:34]} 40. Qa8 {[%clk 0:00:19]}  Kf8 {[%clk 0:00:34]} 41. Qd8 {[%clk 0:00:13]}  Nf3 {[%clk 0:00:33]} 42. h6 {[%clk 0:00:12]}  gxh6 {[%clk 0:00:29]} 43. Qf6+ {[%clk 0:00:12]}  Kg8 {[%clk 0:00:28]} 44. Qxh6 {[%clk 0:00:11]}  Qg6 {[%clk 0:00:26]} 45. Qh3 {[%clk 0:00:10]}  Nd4 {[%clk 0:00:24]} 46. Nxd4 {[%clk 0:00:09]}  exd4 {[%clk 0:00:24]} 47. Be2 {[%clk 0:00:10]}  Kf8 {[%clk 0:00:22]} 48. Qh8+ {[%clk 0:00:06]}  Ke7 {[%clk 0:00:22]} 49. Rh1 {[%clk 0:00:06]}  Bf7 {[%clk 0:00:21]} 50. Qa8 {[%clk 0:00:05]}  Qg2 {[%clk 0:00:20]} 51. Rb1 {[%clk 0:00:03]}  Rxb1+ {[%clk 0:00:18]} 52. Kxb1 {[%clk 0:00:03]}  Nc3+ {[%clk 0:00:18]} 53. Kc2 {[%clk 0:00:04]}  Qxe2+ {[%clk 0:00:18]} 54. Kb3 {[%clk 0:00:04]}  Qxa2# {[%clk 0:00:18]} 0-1


[Site "https://www.chess.com"]

[Event "Titled Tuesday Blitz March 14 Late 2023"]
[White "Kalajzic, Ivan"]
[Black "Wu, Sibo"]
[WhiteFideId "14506378"]
[BlackFideId "8606048"]
[WhiteElo "2203"]
[BlackElo "2421"]
[Result "1-0"]
[Round "05"]
[TimeControl "180+1"]
[Date "2023.03.14"]
[WhiteClock "0:01:28"]
[BlackClock "0:01:28"]

1. d4 {[%clk 0:02:52]}  d5 {[%clk 0:02:59]} 2. Nc3 {[%clk 0:02:51]}  Nf6 {[%clk 0:02:58]} 3. Bg5 {[%clk 0:02:51]}  c6 {[%clk 0:02:57]} 4. e3 {[%clk 0:02:51]}  Bf5 {[%clk 0:02:56]} 5. f4 {[%clk 0:02:51]}  e6 {[%clk 0:02:56]} 6. Nf3 {[%clk 0:02:51]}  Nbd7 {[%clk 0:02:53]} 7. Be2 {[%clk 0:02:51]}  Be7 {[%clk 0:02:53]} 8. O-O {[%clk 0:02:50]}  Ne4 {[%clk 0:02:53]} 9. Bxe7 {[%clk 0:02:49]}  Qxe7 {[%clk 0:02:54]} 10. Nxe4 {[%clk 0:02:46]}  Bxe4 {[%clk 0:02:53]} 11. c3 {[%clk 0:02:36]}  Bxf3 {[%clk 0:02:50]} 12. Bxf3 {[%clk 0:02:35]}  h5 {[%clk 0:02:49]} 13. e4 {[%clk 0:02:35]}  dxe4 {[%clk 0:02:45]} 14. Bxe4 {[%clk 0:02:35]}  Nf6 {[%clk 0:02:45]} 15. Bf3 {[%clk 0:02:28]}  h4 {[%clk 0:02:45]} 16. Re1 {[%clk 0:02:22]}  h3 {[%clk 0:02:44]} 17. g3 {[%clk 0:02:22]}  O-O {[%clk 0:02:40]} 18. f5 {[%clk 0:02:22]}  Qd6 {[%clk 0:02:33]} 19. fxe6 {[%clk 0:02:17]}  fxe6 {[%clk 0:02:34]} 20. Bg4 {[%clk 0:02:08]}  Rae8 {[%clk 0:01:55]} 21. Bxh3 {[%clk 0:02:06]}  Nd5 {[%clk 0:01:48]} 22. Qg4 {[%clk 0:01:57]}  e5 {[%clk 0:01:47]} 23. dxe5 {[%clk 0:01:50]}  Rxe5 {[%clk 0:01:42]} 24. Rxe5 {[%clk 0:01:49]}  Qxe5 {[%clk 0:01:42]} 25. Qe6+ {[%clk 0:01:49]}  Qxe6 {[%clk 0:01:42]} 26. Bxe6+ {[%clk 0:01:49]}  Kh8 {[%clk 0:01:41]} 27. Bxd5 {[%clk 0:01:49]}  cxd5 {[%clk 0:01:41]} 28. Rd1 {[%clk 0:01:45]}  Rd8 {[%clk 0:01:41]} 29. c4 {[%clk 0:01:37]}  d4 {[%clk 0:01:40]} 30. Kf2 {[%clk 0:01:37]}  Kh7 {[%clk 0:01:38]} 31. Kf3 {[%clk 0:01:37]}  Kg6 {[%clk 0:01:37]} 32. Ke4 {[%clk 0:01:37]}  Re8+ {[%clk 0:01:37]} 33. Kd3 {[%clk 0:01:32]}  Kg5 {[%clk 0:01:31]} 34. Rf1 {[%clk 0:01:30]}  Rd8 {[%clk 0:01:28]} 35. Rf7 {[%clk 0:01:28]}  g6 {[%clk 0:01:29]} 36. Rxb7 {[%clk 0:01:28]}  a5 {[%clk 0:01:28]} 1-0


[Site "https://www.chess.com"]

[Event "Titled Tuesday Blitz March 14 Late 2023"]
[White "Khatena, Moshe"]
[Black "Senft, Sean"]
[WhiteFideId "2010461"]
[BlackFideId "2044960"]
[WhiteElo "2211"]
[BlackElo "1989"]
[Result "0-1"]
[Round "05"]
[TimeControl "180+1"]
[Date "2023.03.14"]
[WhiteClock "0:01:05"]
[BlackClock "0:01:23"]

1. e4 {[%clk 0:02:57]}  e5 {[%clk 0:02:55]} 2. Bc4 {[%clk 0:02:56]}  Nf6 {[%clk 0:02:55]} 3. Nf3 {[%clk 0:02:56]}  Nc6 {[%clk 0:02:55]} 4. d3 {[%clk 0:02:55]}  d6 {[%clk 0:02:55]} 5. c3 {[%clk 0:02:52]}  Be7 {[%clk 0:02:55]} 6. O-O {[%clk 0:02:52]}  O-O {[%clk 0:02:55]} 7. Bb3 {[%clk 0:02:48]}  Bg4 {[%clk 0:02:53]} 8. Nbd2 {[%clk 0:02:45]}  Re8 {[%clk 0:02:51]} 9. Re1 {[%clk 0:02:40]}  d5 {[%clk 0:02:50]} 10. Qc2 {[%clk 0:02:37]}  d4 {[%clk 0:02:39]} 11. h3 {[%clk 0:02:12]}  Bh5 {[%clk 0:02:38]} 12. Nh2 {[%clk 0:02:10]}  Na5 {[%clk 0:02:34]} 13. Ba4 {[%clk 0:02:09]}  c6 {[%clk 0:02:34]} 14. c4 {[%clk 0:02:03]}  a6 {[%clk 0:02:20]} 15. Qb1 {[%clk 0:02:03]}  b5 {[%clk 0:02:18]} 16. Bd1 {[%clk 0:02:00]}  Bxd1 {[%clk 0:02:16]} 17. Rxd1 {[%clk 0:02:01]}  bxc4 {[%clk 0:02:16]} 18. dxc4 {[%clk 0:02:02]}  Rb8 {[%clk 0:02:04]} 19. Qd3 {[%clk 0:02:01]}  c5 {[%clk 0:02:02]} 20. Ndf1 {[%clk 0:01:52]}  Nc6 {[%clk 0:01:59]} 21. a3 {[%clk 0:01:46]}  Nh5 {[%clk 0:01:58]} 22. Ng3 {[%clk 0:01:42]}  Nf4 {[%clk 0:01:55]} 23. Bxf4 {[%clk 0:01:37]}  exf4 {[%clk 0:01:56]} 24. Nf5 {[%clk 0:01:36]}  Rxb2 {[%clk 0:01:45]} 25. Qf3 {[%clk 0:01:31]}  Bg5 {[%clk 0:01:37]} 26. Qg4 {[%clk 0:01:25]}  Ne5 {[%clk 0:01:35]} 27. Qh5 {[%clk 0:01:11]}  g6 {[%clk 0:01:28]} 28. Nh6+ {[%clk 0:01:11]}  Kg7 {[%clk 0:01:25]} 29. Nf5+ {[%clk 0:01:05]}  Kh8 {[%clk 0:01:23]} 0-1


[Site "https://www.chess.com"]

[Event "Titled Tuesday Blitz March 14 Late 2023"]
[White "Kohler, Aran"]
[Black "Nazaretyan, Tigran"]
[WhiteFideId "1002856"]
[BlackFideId "24162345"]
[WhiteElo "2259"]
[BlackElo "2111"]
[Result "0-1"]
[Round "05"]
[TimeControl "180+1"]
[Date "2023.03.14"]
[WhiteClock "0:00:22"]
[BlackClock "0:00:22"]

1. Nf3 {[%clk 0:03:00]}  Nf6 {[%clk 0:02:59]} 2. d4 {[%clk 0:03:00]}  g6 {[%clk 0:02:57]} 3. Bg5 {[%clk 0:02:59]}  Bg7 {[%clk 0:02:56]} 4. Nbd2 {[%clk 0:02:59]}  d5 {[%clk 0:02:55]} 5. e3 {[%clk 0:02:58]}  O-O {[%clk 0:02:54]} 6. Bd3 {[%clk 0:02:59]}  c5 {[%clk 0:02:54]} 7. c3 {[%clk 0:02:59]}  Nc6 {[%clk 0:02:53]} 8. h4 {[%clk 0:02:50]}  h6 {[%clk 0:02:48]} 9. h5 {[%clk 0:02:49]}  hxg5 {[%clk 0:02:45]} 10. hxg6 {[%clk 0:02:48]}  g4 {[%clk 0:02:41]} 11. Ng5 {[%clk 0:02:47]}  fxg6 {[%clk 0:02:37]} 12. Bxg6 {[%clk 0:02:47]}  e5 {[%clk 0:02:29]} 13. Qc2 {[%clk 0:02:24]}  e4 {[%clk 0:02:24]} 14. O-O-O {[%clk 0:02:17]}  cxd4 {[%clk 0:02:22]} 15. Ndxe4 {[%clk 0:01:49]}  d3 {[%clk 0:01:21]} 16. Rxd3 {[%clk 0:01:41]}  Ne5 {[%clk 0:01:18]} 17. Nxf6+ {[%clk 0:01:35]}  Bxf6 {[%clk 0:01:17]} 18. Rxd5 {[%clk 0:01:24]}  Qxd5 {[%clk 0:00:59]} 19. Be4 {[%clk 0:01:09]}  Qxa2 {[%clk 0:00:55]} 20. Bd5+ {[%clk 0:01:02]}  Rf7 {[%clk 0:00:38]} 21. Bxa2 {[%clk 0:00:50]}  Bxg5 {[%clk 0:00:35]} 22. Qh7+ {[%clk 0:00:45]}  Kf8 {[%clk 0:00:35]} 23. Bxf7 {[%clk 0:00:36]}  Nxf7 {[%clk 0:00:32]} 24. Qg6 {[%clk 0:00:23]}  Bd7 {[%clk 0:00:26]} 25. Rh7 {[%clk 0:00:20]}  Be8 {[%clk 0:00:25]} 26. Rxf7+ {[%clk 0:00:20]}  Bxf7 {[%clk 0:00:25]} 27. Qxg5 {[%clk 0:00:21]}  Be6 {[%clk 0:00:22]} 28. Qxg4 {[%clk 0:00:22]}  Bxg4 {[%clk 0:00:22]} 29. f3 {[%clk 0:00:22]}  Be6 {[%clk 0:00:21]} 30. e4 {[%clk 0:00:22]}  Ke7 {[%clk 0:00:22]} 0-1


[Site "https://www.chess.com"]

[Event "Titled Tuesday Blitz March 14 Late 2023"]
[White "Kornyukov, Alexey"]
[Black "Delgado Rosas, Fatima Alexandra"]
[WhiteFideId "4150457"]
[BlackFideId "6603963"]
[WhiteElo "2352"]
[BlackElo "2322"]
[Result "0-1"]
[Round "05"]
[TimeControl "180+1"]
[Date "2023.03.14"]
[WhiteClock "0:00:04"]
[BlackClock "0:00:59"]

1. d4 {[%clk 0:03:00]}  Nf6 {[%clk 0:02:55]} 2. c4 {[%clk 0:03:00]}  e6 {[%clk 0:02:53]} 3. Nc3 {[%clk 0:03:00]}  d5 {[%clk 0:02:53]} 4. cxd5 {[%clk 0:02:59]}  exd5 {[%clk 0:02:53]} 5. Bg5 {[%clk 0:02:59]}  Be7 {[%clk 0:02:53]} 6. e3 {[%clk 0:03:00]}  c6 {[%clk 0:02:52]} 7. Bd3 {[%clk 0:03:00]}  O-O {[%clk 0:02:50]} 8. Nf3 {[%clk 0:02:59]}  Nbd7 {[%clk 0:02:36]} 9. Qc2 {[%clk 0:02:58]}  Re8 {[%clk 0:02:35]} 10. h3 {[%clk 0:02:52]}  Nf8 {[%clk 0:02:20]} 11. Bf4 {[%clk 0:02:51]}  Be6 {[%clk 0:02:17]} 12. O-O-O {[%clk 0:02:50]}  Rc8 {[%clk 0:02:17]} 13. Kb1 {[%clk 0:02:50]}  b5 {[%clk 0:02:16]} 14. g4 {[%clk 0:02:47]}  a5 {[%clk 0:02:12]} 15. Ne5 {[%clk 0:02:40]}  a4 {[%clk 0:02:11]} 16. Rc1 {[%clk 0:02:17]}  Qa5 {[%clk 0:02:08]} 17. g5 {[%clk 0:02:05]}  Nh5 {[%clk 0:02:06]} 18. Ne2 {[%clk 0:01:54]}  c5 {[%clk 0:02:00]} 19. dxc5 {[%clk 0:01:47]}  Rxc5 {[%clk 0:01:58]} 20. Qd1 {[%clk 0:01:44]}  Rec8 {[%clk 0:01:56]} 21. Rxc5 {[%clk 0:01:38]}  Rxc5 {[%clk 0:01:57]} 22. Nd4 {[%clk 0:01:33]}  g6 {[%clk 0:01:56]} 23. Qe2 {[%clk 0:01:25]}  a3 {[%clk 0:01:49]} 24. Nb3 {[%clk 0:01:19]}  Qb6 {[%clk 0:01:44]} 25. Nxc5 {[%clk 0:01:18]}  Bxc5 {[%clk 0:01:44]} 26. Ng4 {[%clk 0:00:59]}  d4 {[%clk 0:01:38]} 27. Be5 {[%clk 0:00:53]}  Bxg4 {[%clk 0:01:30]} 28. hxg4 {[%clk 0:00:51]}  Ng7 {[%clk 0:01:24]} 29. Bxb5 {[%clk 0:00:38]}  dxe3 {[%clk 0:01:21]} 30. fxe3 {[%clk 0:00:36]}  Bxe3 {[%clk 0:01:18]} 31. Rf1 {[%clk 0:00:29]}  Bd4 {[%clk 0:01:16]} 32. Bxg7 {[%clk 0:00:20]}  Bxg7 {[%clk 0:01:14]} 33. Bc4 {[%clk 0:00:20]}  Ne6 {[%clk 0:01:10]} 34. Rxf7 {[%clk 0:00:20]}  Kxf7 {[%clk 0:01:08]} 35. Qf3+ {[%clk 0:00:20]}  Ke7 {[%clk 0:01:06]} 36. Qxa3+ {[%clk 0:00:19]}  Qc5 {[%clk 0:01:01]} 37. Bxe6 {[%clk 0:00:12]}  Qxa3 {[%clk 0:01:01]} 38. bxa3 {[%clk 0:00:11]}  Kxe6 {[%clk 0:01:02]} 39. Kc2 {[%clk 0:00:08]}  Ke5 {[%clk 0:01:02]} 40. a4 {[%clk 0:00:06]}  Kf4 {[%clk 0:01:03]} 41. a5 {[%clk 0:00:06]}  Kxg5 {[%clk 0:01:03]} 42. Kd3 {[%clk 0:00:06]}  Bf8 {[%clk 0:01:00]} 43. Kc4 {[%clk 0:00:06]}  Bd6 {[%clk 0:00:59]} 44. Kd5 {[%clk 0:00:04]}  Bb8 {[%clk 0:00:59]} 45. Kc6 {[%clk 0:00:03]}  Kxg4 {[%clk 0:00:56]} 46. Kb7 {[%clk 0:00:02]}  Bf4 {[%clk 0:00:56]} 47. a6 {[%clk 0:00:03]}  Be3 {[%clk 0:00:56]} 48. a4 {[%clk 0:00:02]}  h5 {[%clk 0:00:56]} 49. a7 {[%clk 0:00:02]}  Bxa7 {[%clk 0:00:56]} 50. Kxa7 {[%clk 0:00:03]}  h4 {[%clk 0:00:57]} 51. a5 {[%clk 0:00:03]}  h3 {[%clk 0:00:58]} 52. a6 {[%clk 0:00:04]}  h2 {[%clk 0:00:59]} 53. Kb8 {[%clk 0:00:03]}  h1=Q {[%clk 0:00:59]} 54. a7 {[%clk 0:00:04]}  Kh5 {[%clk 0:00:59]} 55. a8=Q {[%clk 0:00:03]}  Qxa8+ {[%clk 0:00:58]} 56. Kxa8 {[%clk 0:00:04]}  g5 {[%clk 0:00:59]} 0-1


[Site "https://www.chess.com"]